[Event "Titled Tuesday Blitz May 30 Early 2023"]
[White "Vitiugov, Nikita"]
[Black "Al-Tarboush, Ward"]
[WhiteFideId "4152956"]
[BlackFideId "7601450"]
[WhiteElo "2673"]
[BlackElo "2265"]
[Result "1-0"]
[Round "03"]
[TimeControl "180+2"]
[Date "2023.05.30"]
[WhiteClock "0:01:34"]
[BlackClock "0:01:16"]

1. Nf3 {[%clk 0:03:00]}  Nf6 {[%clk 0:02:59]} 2. c4 {[%clk 0:02:59]}  b6 {[%clk 0:02:59]} 3. d4 {[%clk 0:02:57]}  Bb7 {[%clk 0:03:00]} 4. g3 {[%clk 0:02:56]}  e6 {[%clk 0:02:57]} 5. Bg2 {[%clk 0:02:56]}  Be7 {[%clk 0:02:58]} 6. O-O {[%clk 0:02:55]}  O-O {[%clk 0:02:58]} 7. Nc3 {[%clk 0:02:54]}  Ne4 {[%clk 0:02:58]} 8. Qc2 {[%clk 0:02:53]}  Nxc3 {[%clk 0:02:58]} 9. Qxc3 {[%clk 0:02:53]}  Bf6 {[%clk 0:02:57]} 10. Qd3 {[%clk 0:02:52]}  d6 {[%clk 0:02:54]} 11. Ng5 {[%clk 0:02:48]}  Bxg5 {[%clk 0:02:38]} 12. Bxg5 {[%clk 0:02:38]}  Qc8 {[%clk 0:02:38]} 13. d5 {[%clk 0:02:33]}  Nd7 {[%clk 0:02:34]} 14. b4 {[%clk 0:02:26]}  Ne5 {[%clk 0:02:34]} 15. Qd4 {[%clk 0:02:23]}  exd5 {[%clk 0:02:34]} 16. cxd5 {[%clk 0:02:22]}  f6 {[%clk 0:02:32]} 17. Bf4 {[%clk 0:02:20]}  g5 {[%clk 0:02:32]} 18. Bxe5 {[%clk 0:02:18]}  fxe5 {[%clk 0:02:29]} 19. Qe3 {[%clk 0:02:15]}  Qf5 {[%clk 0:02:28]} 20. Rac1 {[%clk 0:02:14]}  Rf7 {[%clk 0:02:28]} 21. Be4 {[%clk 0:02:09]}  Qf6 {[%clk 0:02:28]} 22. Rc3 {[%clk 0:02:07]}  Raf8 {[%clk 0:02:27]} 23. Ra3 {[%clk 0:02:04]}  a6 {[%clk 0:02:24]} 24. f3 {[%clk 0:01:54]}  Rg7 {[%clk 0:02:11]} 25. Rc1 {[%clk 0:01:52]}  Qf7 {[%clk 0:02:11]} 26. Rac3 {[%clk 0:01:47]}  Rc8 {[%clk 0:02:11]} 27. Qd3 {[%clk 0:01:41]}  Rf8 {[%clk 0:01:32]} 28. Rxc7 {[%clk 0:01:36]}  Qxc7 {[%clk 0:01:32]} 29. Rxc7 {[%clk 0:01:36]}  Rxc7 {[%clk 0:01:33]} 30. Qe3 {[%clk 0:01:37]}  b5 {[%clk 0:01:26]} 31. Qxg5+ {[%clk 0:01:36]}  Rg7 {[%clk 0:01:26]} 32. Qh6 {[%clk 0:01:36]}  Rd8 {[%clk 0:01:21]} 33. Bxh7+ {[%clk 0:01:35]}  Kf7 {[%clk 0:01:19]} 34. Qe6+ {[%clk 0:01:34]}  Kf8 {[%clk 0:01:16]} 35. Qf6+ {[%clk 0:01:34]} 1-0


[Site "https://www.chess.com"]

[Event "Titled Tuesday Blitz May 30 Early 2023"]
[White "Hayrapetyan, Hovik"]
[Black "SashaKuzhilniy"]
[WhiteFideId "13302639"]
[WhiteElo "2348"]
[BlackElo "2619"]
[Result "0-1"]
[Round "03"]
[TimeControl "180+2"]
[Date "2023.05.30"]
[WhiteClock "0:00:02"]
[BlackClock "0:00:13"]

1. d4 {[%clk 0:03:00]}  Nf6 {[%clk 0:02:59]} 2. c4 {[%clk 0:03:00]}  e5 {[%clk 0:03:00]} 3. dxe5 {[%clk 0:02:59]}  Ng4 {[%clk 0:03:00]} 4. Nf3 {[%clk 0:03:00]}  Bc5 {[%clk 0:02:59]} 5. e3 {[%clk 0:02:59]}  Nc6 {[%clk 0:02:59]} 6. a3 {[%clk 0:02:57]}  a5 {[%clk 0:02:54]} 7. Be2 {[%clk 0:02:57]}  Ngxe5 {[%clk 0:02:52]} 8. Nxe5 {[%clk 0:02:58]}  Nxe5 {[%clk 0:02:51]} 9. O-O {[%clk 0:02:58]}  O-O {[%clk 0:02:51]} 10. b3 {[%clk 0:02:58]}  Re8 {[%clk 0:02:51]} 11. Bb2 {[%clk 0:02:58]}  Ra6 {[%clk 0:02:51]} 12. Nc3 {[%clk 0:02:56]}  Rh6 {[%clk 0:02:47]} 13. g3 {[%clk 0:02:25]}  d6 {[%clk 0:02:43]} 14. Ne4 {[%clk 0:02:23]}  Ba7 {[%clk 0:02:31]} 15. Re1 {[%clk 0:02:19]}  Bf5 {[%clk 0:02:28]} 16. Nd2 {[%clk 0:02:14]}  Nd3 {[%clk 0:02:25]} 17. Bxd3 {[%clk 0:02:15]}  Bxd3 {[%clk 0:02:25]} 18. Qc1 {[%clk 0:02:09]}  f6 {[%clk 0:02:08]} 19. Qc3 {[%clk 0:02:06]}  Bg6 {[%clk 0:02:09]} 20. Qxa5 {[%clk 0:02:04]}  Bb6 {[%clk 0:02:10]} 21. Qd5+ {[%clk 0:02:01]}  Kh8 {[%clk 0:02:06]} 22. Qxb7 {[%clk 0:02:01]}  Qd7 {[%clk 0:02:05]} 23. Bd4 {[%clk 0:01:47]}  Qh3 {[%clk 0:01:56]} 24. Qg2 {[%clk 0:01:46]}  Qg4 {[%clk 0:01:55]} 25. Bxb6 {[%clk 0:01:43]}  cxb6 {[%clk 0:01:56]} 26. e4 {[%clk 0:01:40]}  Rh5 {[%clk 0:01:30]} 27. Re3 {[%clk 0:01:34]}  Rhe5 {[%clk 0:01:27]} 28. Rae1 {[%clk 0:01:31]}  Qc8 {[%clk 0:01:26]} 29. f4 {[%clk 0:01:28]}  R5e7 {[%clk 0:01:25]} 30. Qf2 {[%clk 0:01:15]}  h6 {[%clk 0:01:22]} 31. f5 {[%clk 0:01:10]}  Bf7 {[%clk 0:01:21]} 32. Rd3 {[%clk 0:01:09]}  Qc6 {[%clk 0:01:20]} 33. Qd4 {[%clk 0:01:07]}  Rd8 {[%clk 0:01:17]} 34. b4 {[%clk 0:01:05]}  Re5 {[%clk 0:01:15]} 35. Rc1 {[%clk 0:00:55]}  Kh7 {[%clk 0:01:10]} 36. Re1 {[%clk 0:00:49]}  Re7 {[%clk 0:01:04]} 37. Rde3 {[%clk 0:00:46]}  Ra8 {[%clk 0:01:03]} 38. Kf2 {[%clk 0:00:44]}  Rc7 {[%clk 0:00:57]} 39. Rd3 {[%clk 0:00:43]}  Bxc4 {[%clk 0:00:54]} 40. Rc1 {[%clk 0:00:24]}  b5 {[%clk 0:00:53]} 41. Nxc4 {[%clk 0:00:21]}  bxc4 {[%clk 0:00:52]} 42. Rdc3 {[%clk 0:00:20]}  Qd7 {[%clk 0:00:30]} 43. Qd5 {[%clk 0:00:11]}  Rca7 {[%clk 0:00:29]} 44. Rxc4 {[%clk 0:00:07]}  Rxa3 {[%clk 0:00:29]} 45. Rc7 {[%clk 0:00:08]}  Ra2+ {[%clk 0:00:26]} 46. Kg1 {[%clk 0:00:08]}  Qe8 {[%clk 0:00:18]} 47. Qf7 {[%clk 0:00:03]}  Qxf7 {[%clk 0:00:17]} 48. Rxf7 {[%clk 0:00:04]}  R8a7 {[%clk 0:00:15]} 49. Rxa7 {[%clk 0:00:04]}  Rxa7 {[%clk 0:00:16]} 50. Rc4 {[%clk 0:00:03]}  Kg8 {[%clk 0:00:15]} 51. Kf2 {[%clk 0:00:04]}  Ra3 {[%clk 0:00:15]} 52. Rd4 {[%clk 0:00:04]}  Rb3 {[%clk 0:00:16]} 53. Kg2 {[%clk 0:00:04]}  Kf7 {[%clk 0:00:16]} 54. Kh3 {[%clk 0:00:04]}  Rb2 {[%clk 0:00:14]} 55. Rc4 {[%clk 0:00:04]}  Ke7 {[%clk 0:00:14]} 56. Rc7+ {[%clk 0:00:04]}  Kf8 {[%clk 0:00:14]} 57. Rb7 {[%clk 0:00:04]}  Re2 {[%clk 0:00:15]} 58. Kg4 {[%clk 0:00:04]}  Rxe4+ {[%clk 0:00:15]} 59. Kh5 {[%clk 0:00:04]}  Re7 {[%clk 0:00:12]} 60. Rxe7 {[%clk 0:00:02]}  Kxe7 {[%clk 0:00:13]} 61. Kg6 {[%clk 0:00:02]}  d5 {[%clk 0:00:13]} 62. Kh5 {[%clk 0:00:02]}  Kd6 {[%clk 0:00:11]} 63. Kg4 {[%clk 0:00:02]}  Kc6 {[%clk 0:00:12]} 64. Kf4 {[%clk 0:00:02]}  Kb5 {[%clk 0:00:13]} 65. Ke3 {[%clk 0:00:03]}  Kc4 {[%clk 0:00:13]} 66. b5 {[%clk 0:00:02]}  Kxb5 {[%clk 0:00:13]} 67. Kd4 {[%clk 0:00:03]}  Kc6 {[%clk 0:00:14]} 68. Ke3 {[%clk 0:00:01]}  Kc5 {[%clk 0:00:14]} 69. Kd3 {[%clk 0:00:01]}  d4 {[%clk 0:00:14]} 70. g4 {[%clk 0:00:01]}  Kd5 {[%clk 0:00:15]} 71. h4 {[%clk 0:00:02]}  Ke5 {[%clk 0:00:15]} 72. h5 {[%clk 0:00:01]}  Kd5 {[%clk 0:00:13]} 73. g5 {[%clk 0:00:02]} 0-1


[Site "https://www.chess.com"]

[Event "Titled Tuesday Blitz May 30 Early 2023"]
[White "Lamaze, Simon"]
[Black "Kravtsiv, Martyn"]
[WhiteFideId "36069264"]
[BlackFideId "14113147"]
[WhiteElo "2272"]
[BlackElo "2695"]
[Result "0-1"]
[Round "03"]
[TimeControl "180+2"]
[Date "2023.05.30"]
[WhiteClock "0:01:07"]
[BlackClock "0:00:43"]

1. e4 {[%clk 0:03:00]}  e5 {[%clk 0:02:59]} 2. Nf3 {[%clk 0:03:01]}  Nc6 {[%clk 0:02:58]} 3. Bc4 {[%clk 0:03:01]}  Nf6 {[%clk 0:02:58]} 4. d3 {[%clk 0:03:01]}  Bc5 {[%clk 0:02:57]} 5. Nc3 {[%clk 0:03:01]}  a6 {[%clk 0:02:54]} 6. a4 {[%clk 0:02:55]}  h6 {[%clk 0:02:53]} 7. h3 {[%clk 0:02:52]}  d6 {[%clk 0:02:51]} 8. Be3 {[%clk 0:02:52]}  g5 {[%clk 0:02:11]} 9. Ne2 {[%clk 0:02:42]}  Nh5 {[%clk 0:01:54]} 10. Bxc5 {[%clk 0:02:09]}  dxc5 {[%clk 0:01:53]} 11. g3 {[%clk 0:02:09]}  Qd6 {[%clk 0:01:50]} 12. Nc3 {[%clk 0:02:03]}  Ng7 {[%clk 0:01:43]} 13. Nd5 {[%clk 0:02:00]}  Bd7 {[%clk 0:01:40]} 14. Ne3 {[%clk 0:02:00]}  O-O-O {[%clk 0:01:38]} 15. Qd2 {[%clk 0:01:53]}  Nd4 {[%clk 0:01:32]} 16. Qd1 {[%clk 0:01:45]}  Rhf8 {[%clk 0:01:28]} 17. c3 {[%clk 0:01:45]}  Nxf3+ {[%clk 0:01:20]} 18. Qxf3 {[%clk 0:01:44]}  f5 {[%clk 0:01:20]} 19. exf5 {[%clk 0:01:39]}  Bc6 {[%clk 0:01:09]} 20. Qg4 {[%clk 0:01:34]}  h5 {[%clk 0:00:46]} 21. Qxg5 {[%clk 0:01:33]}  Bxh1 {[%clk 0:00:47]} 22. Qxg7 {[%clk 0:01:29]}  Bf3 {[%clk 0:00:47]} 23. Qg6 {[%clk 0:01:21]}  Rf6 {[%clk 0:00:44]} 24. Be6+ {[%clk 0:01:15]}  Qxe6 {[%clk 0:00:44]} 25. fxe6 {[%clk 0:01:07]}  Rxg6 {[%clk 0:00:43]} 0-1


[Site "https://www.chess.com"]

[Event "Titled Tuesday Blitz May 30 Early 2023"]
[White "Mischuk, Dmitry"]
[Black "Sharapov, Evgeny"]
[WhiteFideId "14118734"]
[BlackFideId "14103133"]
[WhiteElo "2256"]
[BlackElo "2367"]
[Result "1-0"]
[Round "03"]
[TimeControl "180+2"]
[Date "2023.05.30"]
[WhiteClock "0:00:20"]
[BlackClock "0:00:03"]

1. d4 {[%clk 0:03:00]}  Nf6 {[%clk 0:02:59]} 2. c4 {[%clk 0:03:01]}  e6 {[%clk 0:02:59]} 3. Nf3 {[%clk 0:02:59]}  Bb4+ {[%clk 0:02:59]} 4. Nbd2 {[%clk 0:02:59]}  b6 {[%clk 0:02:58]} 5. g3 {[%clk 0:02:58]}  Bb7 {[%clk 0:02:57]} 6. Bg2 {[%clk 0:02:58]}  O-O {[%clk 0:02:57]} 7. O-O {[%clk 0:02:57]}  c5 {[%clk 0:02:57]} 8. a3 {[%clk 0:02:52]}  Bxd2 {[%clk 0:02:56]} 9. Qxd2 {[%clk 0:02:52]}  cxd4 {[%clk 0:02:56]} 10. Qxd4 {[%clk 0:02:49]}  d5 {[%clk 0:02:54]} 11. cxd5 {[%clk 0:02:41]}  Bxd5 {[%clk 0:02:48]} 12. Bf4 {[%clk 0:02:28]}  Nc6 {[%clk 0:02:47]} 13. Qd2 {[%clk 0:02:23]}  Qe7 {[%clk 0:02:46]} 14. b4 {[%clk 0:02:09]}  Rfd8 {[%clk 0:02:46]} 15. Qb2 {[%clk 0:02:09]}  Rac8 {[%clk 0:02:43]} 16. Rfd1 {[%clk 0:02:07]}  h6 {[%clk 0:02:33]} 17. h3 {[%clk 0:02:07]}  Be4 {[%clk 0:02:27]} 18. Rxd8+ {[%clk 0:02:04]}  Rxd8 {[%clk 0:02:27]} 19. Rc1 {[%clk 0:02:05]}  Qb7 {[%clk 0:02:15]} 20. Bd2 {[%clk 0:01:53]}  Nd4 {[%clk 0:02:10]} 21. Bc3 {[%clk 0:01:06]}  Nxf3+ {[%clk 0:02:04]} 22. exf3 {[%clk 0:01:07]}  Bxf3 {[%clk 0:02:04]} 23. Bxf6 {[%clk 0:01:08]}  Bxg2 {[%clk 0:01:36]} 24. Bxd8 {[%clk 0:01:07]}  Bxh3 {[%clk 0:01:36]} 25. f4 {[%clk 0:01:07]}  Qf3 {[%clk 0:01:34]} 26. Qf2 {[%clk 0:01:06]}  Qxa3 {[%clk 0:01:23]} 27. Re1 {[%clk 0:00:56]}  Qxb4 {[%clk 0:01:22]} 28. Bc7 {[%clk 0:00:56]}  Qc3 {[%clk 0:01:18]} 29. Be5 {[%clk 0:00:56]}  Qd3 {[%clk 0:01:16]} 30. Qe3 {[%clk 0:00:51]}  Qc2 {[%clk 0:01:14]} 31. Qe2 {[%clk 0:00:44]}  Qc6 {[%clk 0:01:13]} 32. Kh2 {[%clk 0:00:43]}  Bf5 {[%clk 0:01:11]} 33. Qd2 {[%clk 0:00:43]}  Qf3 {[%clk 0:01:08]} 34. Re3 {[%clk 0:00:37]}  Qh5+ {[%clk 0:01:03]} 35. Kg1 {[%clk 0:00:38]}  f6 {[%clk 0:01:01]} 36. Bb2 {[%clk 0:00:37]}  Qg4 {[%clk 0:00:58]} 37. Qe2 {[%clk 0:00:30]}  Qg6 {[%clk 0:00:55]} 38. Kf2 {[%clk 0:00:27]}  h5 {[%clk 0:00:55]} 39. Qa6 {[%clk 0:00:25]}  h4 {[%clk 0:00:47]} 40. gxh4 {[%clk 0:00:25]}  Qg4 {[%clk 0:00:46]} 41. Qe2 {[%clk 0:00:17]}  Qxh4+ {[%clk 0:00:45]} 42. Kg1 {[%clk 0:00:16]}  a5 {[%clk 0:00:40]} 43. Qf2 {[%clk 0:00:15]}  Qg4+ {[%clk 0:00:38]} 44. Qg3 {[%clk 0:00:16]}  Qd1+ {[%clk 0:00:36]} 45. Re1 {[%clk 0:00:15]}  Qc2 {[%clk 0:00:32]} 46. Bxf6 {[%clk 0:00:16]}  Qc7 {[%clk 0:00:27]} 47. Be5 {[%clk 0:00:15]}  Qd7 {[%clk 0:00:26]} 48. Qe3 {[%clk 0:00:13]}  a4 {[%clk 0:00:20]} 49. Kf2 {[%clk 0:00:13]}  Qc6 {[%clk 0:00:18]} 50. Rg1 {[%clk 0:00:13]}  g6 {[%clk 0:00:17]} 51. Qc3 {[%clk 0:00:12]}  Qxc3 {[%clk 0:00:16]} 52. Bxc3 {[%clk 0:00:12]}  b5 {[%clk 0:00:17]} 53. Bb4 {[%clk 0:00:12]}  Kf7 {[%clk 0:00:17]} 54. Ke3 {[%clk 0:00:12]}  Kf6 {[%clk 0:00:17]} 55. Kd4 {[%clk 0:00:13]}  Bc2 {[%clk 0:00:15]} 56. Bd6 {[%clk 0:00:13]}  Bb3 {[%clk 0:00:14]} 57. Rg5 {[%clk 0:00:14]}  Bd5 {[%clk 0:00:13]} 58. Rg1 {[%clk 0:00:13]}  Bc4 {[%clk 0:00:13]} 59. Kc5 {[%clk 0:00:13]}  Kf5 {[%clk 0:00:13]} 60. Kd4 {[%clk 0:00:13]}  Kf6 {[%clk 0:00:13]} 61. Rg5 {[%clk 0:00:13]}  Kf7 {[%clk 0:00:13]} 62. Bb4 {[%clk 0:00:14]}  Kf6 {[%clk 0:00:13]} 63. Bc5 {[%clk 0:00:14]}  Kf7 {[%clk 0:00:13]} 64. Ke5 {[%clk 0:00:15]}  Bd5 {[%clk 0:00:12]} 65. Rg3 {[%clk 0:00:14]}  Bc4 {[%clk 0:00:12]} 66. Rh3 {[%clk 0:00:14]}  Kg7 {[%clk 0:00:12]} 67. Rh2 {[%clk 0:00:14]}  Bd5 {[%clk 0:00:12]} 68. Bb4 {[%clk 0:00:13]}  Bc4 {[%clk 0:00:12]} 69. Rd2 {[%clk 0:00:13]}  Bd5 {[%clk 0:00:12]} 70. Rd1 {[%clk 0:00:14]}  Kf7 {[%clk 0:00:11]} 71. Rc1 {[%clk 0:00:14]}  Kg7 {[%clk 0:00:10]} 72. Rc7+ {[%clk 0:00:15]}  Kh6 {[%clk 0:00:11]} 73. Kf6 {[%clk 0:00:15]}  Kh5 {[%clk 0:00:11]} 74. Rg7 {[%clk 0:00:15]}  Kg4 {[%clk 0:00:10]} 75. Ke5 {[%clk 0:00:15]}  Kh5 {[%clk 0:00:10]} 76. Bd6 {[%clk 0:00:16]}  Bc4 {[%clk 0:00:10]} 77. Kf6 {[%clk 0:00:16]}  Kg4 {[%clk 0:00:08]} 78. Rxg6+ {[%clk 0:00:16]}  Kf3 {[%clk 0:00:09]} 79. Ke5 {[%clk 0:00:16]}  Ke3 {[%clk 0:00:08]} 80. Rg3+ {[%clk 0:00:17]}  Kd2 {[%clk 0:00:08]} 81. Kd4 {[%clk 0:00:18]}  Kc2 {[%clk 0:00:08]} 82. Bb4 {[%clk 0:00:18]}  Bb3 {[%clk 0:00:07]} 83. Rg2+ {[%clk 0:00:17]}  Kd1 {[%clk 0:00:07]} 84. Kd3 {[%clk 0:00:17]}  Bc4+ {[%clk 0:00:06]} 85. Kc3 {[%clk 0:00:18]}  Ke1 {[%clk 0:00:06]} 86. Rh2 {[%clk 0:00:18]}  Kf1 {[%clk 0:00:06]} 87. Rd2 {[%clk 0:00:18]}  Ke1 {[%clk 0:00:05]} 88. Rd4 {[%clk 0:00:18]}  Ke2 {[%clk 0:00:05]} 89. Rxc4 {[%clk 0:00:18]}  bxc4 {[%clk 0:00:05]} 90. Kxc4 {[%clk 0:00:19]}  Kf3 {[%clk 0:00:05]} 91. Bd6 {[%clk 0:00:20]}  a3 {[%clk 0:00:05]} 92. Kb3 {[%clk 0:00:20]}  Ke4 {[%clk 0:00:03]} 93. Kxa3 {[%clk 0:00:20]} 1-0


[Site "https://www.chess.com"]

[Event "Titled Tuesday Blitz May 30 Early 2023"]
[White "Fier, Alexandr"]
[Black "Bodnaruk, Anastasia"]
[WhiteFideId "2107139"]
[BlackFideId "4181751"]
[WhiteElo "2610"]
[BlackElo "2304"]
[Result "1-0"]
[Round "03"]
[TimeControl "180+2"]
[Date "2023.05.30"]
[WhiteClock "0:00:27"]
[BlackClock "0:00:00"]

1. d4 {[%clk 0:03:00]}  Nf6 {[%clk 0:02:59]} 2. Bg5 {[%clk 0:03:01]}  d5 {[%clk 0:02:59]} 3. Bxf6 {[%clk 0:03:00]}  exf6 {[%clk 0:02:59]} 4. c4 {[%clk 0:03:01]}  dxc4 {[%clk 0:02:56]} 5. e3 {[%clk 0:03:01]}  Bd6 {[%clk 0:02:56]} 6. Bxc4 {[%clk 0:03:01]}  O-O {[%clk 0:02:56]} 7. Nc3 {[%clk 0:03:02]}  c6 {[%clk 0:02:56]} 8. Qf3 {[%clk 0:03:02]}  Re8 {[%clk 0:02:47]} 9. Nge2 {[%clk 0:03:02]}  Nd7 {[%clk 0:02:41]} 10. g4 {[%clk 0:03:01]}  Nb6 {[%clk 0:02:27]} 11. Bb3 {[%clk 0:03:00]}  Be6 {[%clk 0:02:27]} 12. Bxe6 {[%clk 0:02:59]}  fxe6 {[%clk 0:02:25]} 13. h4 {[%clk 0:02:58]}  e5 {[%clk 0:02:22]} 14. Rd1 {[%clk 0:02:51]}  Qe7 {[%clk 0:02:16]} 15. h5 {[%clk 0:02:49]}  e4 {[%clk 0:02:07]} 16. Qg2 {[%clk 0:02:45]}  Nc4 {[%clk 0:02:07]} 17. b3 {[%clk 0:02:43]}  Nb2 {[%clk 0:02:07]} 18. Rd2 {[%clk 0:02:42]}  Nd3+ {[%clk 0:02:08]} 19. Kf1 {[%clk 0:02:43]}  Nb4 {[%clk 0:01:57]} 20. Rh4 {[%clk 0:02:22]}  Nd5 {[%clk 0:01:51]} 21. g5 {[%clk 0:02:20]}  f5 {[%clk 0:01:49]} 22. Rc2 {[%clk 0:02:05]}  Nb4 {[%clk 0:01:38]} 23. Rd2 {[%clk 0:02:03]}  Nd3 {[%clk 0:01:38]} 24. Rh3 {[%clk 0:01:40]}  Rac8 {[%clk 0:01:35]} 25. f4 {[%clk 0:01:40]}  c5 {[%clk 0:01:27]} 26. h6 {[%clk 0:01:31]}  g6 {[%clk 0:01:25]} 27. Nd5 {[%clk 0:01:30]}  Qf7 {[%clk 0:01:12]} 28. Nf6+ {[%clk 0:01:30]}  Kh8 {[%clk 0:01:13]} 29. Nxe8 {[%clk 0:01:29]}  Qxe8 {[%clk 0:01:08]} 30. Kg1 {[%clk 0:01:22]}  c4 {[%clk 0:00:55]} 31. bxc4 {[%clk 0:01:20]}  Rxc4 {[%clk 0:00:55]} 32. Qf1 {[%clk 0:01:05]}  Bb4 {[%clk 0:00:48]} 33. Rd1 {[%clk 0:01:05]}  Qa4 {[%clk 0:00:42]} 34. Rh2 {[%clk 0:00:57]}  Rc2 {[%clk 0:00:32]} 35. Ra1 {[%clk 0:00:50]}  Bd2 {[%clk 0:00:31]} 36. Rh3 {[%clk 0:00:48]}  Qc4 {[%clk 0:00:29]} 37. d5 {[%clk 0:00:44]}  Qxd5 {[%clk 0:00:23]} 38. Rb1 {[%clk 0:00:45]}  b6 {[%clk 0:00:21]} 39. Qd1 {[%clk 0:00:41]}  Rxa2 {[%clk 0:00:20]} 40. Kf1 {[%clk 0:00:36]}  Qc4 {[%clk 0:00:16]} 41. Ra1 {[%clk 0:00:33]}  Rc2 {[%clk 0:00:10]} 42. Rxa7 {[%clk 0:00:32]}  Kg8 {[%clk 0:00:07]} 43. Qa1 {[%clk 0:00:30]}  Bc3 {[%clk 0:00:05]} 44. Ra8+ {[%clk 0:00:30]}  Kf7 {[%clk 0:00:05]} 45. Qa7+ {[%clk 0:00:31]}  Ke6 {[%clk 0:00:05]} 46. Re8+ {[%clk 0:00:31]}  Kd5 {[%clk 0:00:05]} 47. Qf7+ {[%clk 0:00:30]}  Kc5 {[%clk 0:00:02]} 48. Rc8+ {[%clk 0:00:31]}  Kd6 {[%clk 0:00:00]} 49. Rxc4 {[%clk 0:00:27]} 1-0


[Site "https://www.chess.com"]

[Event "Titled Tuesday Blitz May 30 Early 2023"]
[White "Kukhmazov, Arsen"]
[Black "Degenbaev, Aziz"]
[WhiteFideId "24108260"]
[BlackFideId "13802640"]
[WhiteElo "2396"]
[BlackElo "2152"]
[Result "1-0"]
[Round "03"]
[TimeControl "180+2"]
[Date "2023.05.30"]
[WhiteClock "0:00:05"]
[BlackClock "0:00:02"]

1. d4 {[%clk 0:03:00]}  Nf6 {[%clk 0:02:58]} 2. c4 {[%clk 0:02:59]}  g6 {[%clk 0:02:58]} 3. h4 {[%clk 0:02:57]}  Bg7 {[%clk 0:02:57]} 4. Nc3 {[%clk 0:02:53]}  O-O {[%clk 0:02:42]} 5. e4 {[%clk 0:02:41]}  d6 {[%clk 0:02:42]} 6. Be2 {[%clk 0:02:37]}  c5 {[%clk 0:02:39]} 7. d5 {[%clk 0:02:36]}  e6 {[%clk 0:02:34]} 8. h5 {[%clk 0:02:29]}  exd5 {[%clk 0:02:34]} 9. exd5 {[%clk 0:02:30]}  Re8 {[%clk 0:02:32]} 10. Kf1 {[%clk 0:02:28]}  Bf5 {[%clk 0:02:14]} 11. g4 {[%clk 0:02:23]}  Bd7 {[%clk 0:01:39]} 12. f3 {[%clk 0:02:02]}  b5 {[%clk 0:01:25]} 13. cxb5 {[%clk 0:02:01]}  a6 {[%clk 0:01:25]} 14. Bf4 {[%clk 0:01:58]}  Nxg4 {[%clk 0:01:10]} 15. fxg4 {[%clk 0:01:42]}  Qf6 {[%clk 0:01:09]} 16. Qd2 {[%clk 0:01:43]}  g5 {[%clk 0:01:06]} 17. Nh3 {[%clk 0:01:42]}  gxf4 {[%clk 0:01:05]} 18. Qxf4 {[%clk 0:01:43]}  axb5 {[%clk 0:01:01]} 19. h6 {[%clk 0:01:09]}  Bh8 {[%clk 0:00:42]} 20. Bxb5 {[%clk 0:00:52]}  Bxb5+ {[%clk 0:00:38]} 21. Nxb5 {[%clk 0:00:52]}  Qxb2 {[%clk 0:00:39]} 22. Nxd6 {[%clk 0:00:29]}  Qxa1+ {[%clk 0:00:13]} 23. Kg2 {[%clk 0:00:29]}  Qxa2+ {[%clk 0:00:06]} 24. Kf1 {[%clk 0:00:11]}  Qxd5 {[%clk 0:00:05]} 25. Nxe8 {[%clk 0:00:07]}  Qxh1+ {[%clk 0:00:05]} 26. Ng1 {[%clk 0:00:07]}  Ra1+ {[%clk 0:00:04]} 27. Ke2 {[%clk 0:00:08]}  Qxg1 {[%clk 0:00:04]} 28. Nf6+ {[%clk 0:00:05]}  Kf8 {[%clk 0:00:02]} 29. Qd6# {[%clk 0:00:05]} 1-0


[Site "https://www.chess.com"]

[Event "Titled Tuesday Blitz May 30 Early 2023"]
[White "Martic, Ivan"]
[Black "Gorovets, Andrey"]
[WhiteFideId "929301"]
[BlackFideId "13504037"]
[WhiteElo "2360"]
[BlackElo "2459"]
[Result "1/2-1/2"]
[Round "03"]
[TimeControl "180+2"]
[Date "2023.05.30"]
[WhiteClock "0:00:15"]
[BlackClock "0:00:16"]

1. d4 {[%clk 0:03:00]}  f5 {[%clk 0:02:58]} 2. Bf4 {[%clk 0:03:00]}  Nf6 {[%clk 0:02:56]} 3. e3 {[%clk 0:03:00]}  g6 {[%clk 0:02:54]} 4. h4 {[%clk 0:02:59]}  h6 {[%clk 0:02:50]} 5. Nc3 {[%clk 0:02:52]}  Nc6 {[%clk 0:02:46]} 6. Bc4 {[%clk 0:02:49]}  Bg7 {[%clk 0:02:28]} 7. Nf3 {[%clk 0:02:40]}  e6 {[%clk 0:02:16]} 8. d5 {[%clk 0:02:33]}  Nb4 {[%clk 0:02:07]} 9. dxe6 {[%clk 0:02:28]}  d5 {[%clk 0:02:08]} 10. a3 {[%clk 0:01:56]}  dxc4 {[%clk 0:01:33]} 11. Qxd8+ {[%clk 0:01:54]}  Kxd8 {[%clk 0:01:34]} 12. O-O-O+ {[%clk 0:01:54]}  Nbd5 {[%clk 0:01:29]} 13. Nxd5 {[%clk 0:01:53]}  Nxd5 {[%clk 0:01:30]} 14. Rxd5+ {[%clk 0:01:53]}  Ke7 {[%clk 0:01:30]} 15. Bxc7 {[%clk 0:01:38]}  Bxe6 {[%clk 0:01:28]} 16. Bd6+ {[%clk 0:01:34]}  Kf7 {[%clk 0:01:23]} 17. Rb5 {[%clk 0:01:21]}  b6 {[%clk 0:01:18]} 18. Ne5+ {[%clk 0:01:09]}  Bxe5 {[%clk 0:01:15]} 19. Bxe5 {[%clk 0:01:09]}  Rhd8 {[%clk 0:01:13]} 20. Bd4 {[%clk 0:01:06]}  Bd5 {[%clk 0:01:08]} 21. f3 {[%clk 0:01:04]}  Rd7 {[%clk 0:01:02]} 22. h5 {[%clk 0:00:58]}  g5 {[%clk 0:01:01]} 23. Rf1 {[%clk 0:00:51]}  Be6 {[%clk 0:00:49]} 24. a4 {[%clk 0:00:47]}  Rd5 {[%clk 0:00:38]} 25. Rxd5 {[%clk 0:00:43]}  Bxd5 {[%clk 0:00:39]} 26. e4 {[%clk 0:00:40]}  Be6 {[%clk 0:00:38]} 27. exf5 {[%clk 0:00:39]}  Bxf5 {[%clk 0:00:39]} 28. Re1 {[%clk 0:00:40]}  g4 {[%clk 0:00:34]} 29. Re5 {[%clk 0:00:38]}  Be6 {[%clk 0:00:31]} 30. f4 {[%clk 0:00:34]}  Rd8 {[%clk 0:00:29]} 31. c3 {[%clk 0:00:33]}  Rd5 {[%clk 0:00:28]} 32. Rxd5 {[%clk 0:00:27]}  Bxd5 {[%clk 0:00:29]} 33. g3 {[%clk 0:00:28]}  Bc6 {[%clk 0:00:27]} 34. a5 {[%clk 0:00:27]}  bxa5 {[%clk 0:00:28]} 35. Bxa7 {[%clk 0:00:27]}  Ke6 {[%clk 0:00:24]} 36. Bd4 {[%clk 0:00:23]}  Kd5 {[%clk 0:00:21]} 37. Bg7 {[%clk 0:00:20]}  Ke4 {[%clk 0:00:21]} 38. Bxh6 {[%clk 0:00:19]}  Be8 {[%clk 0:00:21]} 39. Bf8 {[%clk 0:00:16]}  Bxh5 {[%clk 0:00:21]} 40. Bd6 {[%clk 0:00:17]}  Bg6 {[%clk 0:00:19]} 41. f5 {[%clk 0:00:14]}  Bxf5 {[%clk 0:00:16]} 42. Kd2 {[%clk 0:00:15]} 1/2-1/2


[Site "https://www.chess.com"]